{"text_format":"3","workbook":"xlsx","n_sheets":3,"sheets":["Relatório de Orçamento Mensal","Despesas Mensais","Dados Adicionais"],"not_rendered":{"charts":1,"defined_names":4,"pivot_tables":2},"read":"whole","date_system":"1900"}

{"sheet":"Relatório de Orçamento Mensal","index":0,"n_rows":34,"n_cols":14,"rows_kept":34,"merged":[[7,1,10,1],[7,5,10,5],[7,6,10,6],[12,1,16,1],[12,5,16,5],[12,6,16,6]]}
[null,"Descrição Geral do Orçamento",{"$nulls":7},"Resumo do Orçamento"]
[null,"Saldo"]
[null,"Saldo Estimado","(Estimado menos despesas)",{"$nulls":3},{"$f":"D17-SUM(DadosDoOrçamento[Custo Estimado])","v":{"v":1585,"d":"1,585 €"}}]
[null,"Saldo Real ","(Real menos despesas)",{"$nulls":3},{"$f":"D11-SUM(DadosDoOrçamento[Custo Real])","v":{"v":1740,"d":"1,740 €"}}]
[null,"Diferença","(Real menos estimado)",{"$nulls":3},{"$f":"G4-G3","v":{"v":155,"d":"155 €"}}]
[]
[null,"Rendimento",{"$nulls":3},"Despesas",{"$nulls":3},"Clique com o botão direito do rato na Tabela Dinâmica abaixo e, em seguida, clique em Atualizar"]
[null,"REAL","Rendimento 1",{"v":5800,"d":"5,800 €"},null,"REAL",{"$f":"SUM(DadosDoOrçamento[Custo Real])","v":{"v":7860,"d":"7,860 €"}}]
[null,null,"Rendimento 2",{"v":2300,"d":"2,300 €"},{"$nulls":6},"Categoria","Custo Estimado ","Custo Real ","Diferença "]
[null,null,"Rendimento extra",{"v":1500,"d":"1,500 €"},{"$nulls":6},"Alimentação",{"v":1100,"d":"1,100 €"},{"v":1320,"d":"1,320 €"},{"v":-220,"d":"-220 €"}]
[null,null,"Rendimentos totais",{"$f":"SUM(D8:D10)","v":{"v":9600,"d":"9,600 €"}}]
[{"$nulls":10},"Animais de Estimação",{"v":170,"d":"170 €"},{"v":100,"d":"100 €"},{"v":70,"d":"70 €"}]
[null,"ESTIMADO",{"$nulls":3},"ESTIMADO",{"$f":"SUM(DadosDoOrçamento[Custo Estimado])","v":{"v":7915,"d":"7,915 €"}}]
[null,null,"Rendimento 1",{"v":6000,"d":"6,000 €"},{"$nulls":6},"Crianças",{"v":140,"d":"140 €"},{"v":140,"d":"140 €"},{"v":0,"d":"0 €"}]
[null,null,"Rendimento 2",{"v":1000,"d":"1,000 €"}]
[null,null,"Rendimento extra",{"v":2500,"d":"2,500 €"},{"$nulls":6},"Cuidados Pessoais",{"v":150,"d":"150 €"},{"v":140,"d":"140 €"},{"v":10,"d":"10 €"}]
[null,null,"Rendimentos totais",{"$f":"SUM(D14:D16)","v":{"v":9500,"d":"9,500 €"}}]
[{"$nulls":10},"Empréstimos",{"v":200,"d":"200 €"},{"v":200,"d":"200 €"},{"v":0,"d":"0 €"}]
[]
[{"$nulls":10},"Habitação",{"v":2830,"d":"2,830 €"},{"v":2702,"d":"2,702 €"},{"v":128,"d":"128 €"}]
[]
[{"$nulls":10},"Impostos",{"v":300,"d":"300 €"},{"v":300,"d":"300 €"},{"v":0,"d":"0 €"}]
[]
[{"$nulls":10},"Lazer",{"v":400,"d":"400 €"},{"v":358,"d":"358 €"},{"v":42,"d":"42 €"}]
[]
[{"$nulls":10},"Poupanças ou Investimentos",{"v":200,"d":"200 €"},{"v":200,"d":"200 €"},{"v":0,"d":"0 €"}]
[]
[{"$nulls":10},"Presentes e Doações a Instituições de Caridade",{"v":100,"d":"100 €"},{"v":125,"d":"125 €"},{"v":-25,"d":"-25 €"}]
[]
[{"$nulls":10},"Seguro",{"v":900,"d":"900 €"},{"v":900,"d":"900 €"},{"v":0,"d":"0 €"}]
[]
[{"$nulls":10},"Transportes",{"v":1425,"d":"1,425 €"},{"v":1375,"d":"1,375 €"},{"v":50,"d":"50 €"}]
[]
[{"$nulls":10},"Total Geral",{"v":7915,"d":"7,915 €"},{"v":7860,"d":"7,860 €"},{"v":55,"d":"55 €"}]

{"sheet":"Despesas Mensais","index":1,"n_rows":62,"n_cols":7,"rows_kept":62}
[null,"Despesas Mensais"]
[null,"Descrição","Categoria","Custo Estimado","Custo Real","Diferença","Descrição Geral do Custo Real"]
[null,"Atividades extracurriculares","Crianças",{"v":40,"d":"40 €"},{"v":40,"d":"40 €"},{"$f":"DadosDoOrçamento[[#This Row],[Custo Estimado]]-DadosDoOrçamento[[#This Row],[Custo Real]]","v":{"v":0,"d":"0 €"}},{"$f":"DadosDoOrçamento[[#This Row],[Custo Real]]","v":{"v":40,"d":"40 €"}}]
[null,"Médicos","Crianças",null,null,{"$f":"DadosDoOrçamento[[#This Row],[Custo Estimado]]-DadosDoOrçamento[[#This Row],[Custo Real]]","v":{"v":0,"d":"0 €"}},{"$f":"DadosDoOrçamento[[#This Row],[Custo Real]]","v":{"v":0,"d":"0 €"}}]
[null,"Material Escolar","Crianças",null,null,{"$f":"DadosDoOrçamento[[#This Row],[Custo Estimado]]-DadosDoOrçamento[[#This Row],[Custo Real]]","v":{"v":0,"d":"0 €"}},{"$f":"DadosDoOrçamento[[#This Row],[Custo Real]]","v":{"v":0,"d":"0 €"}}]
[null,"Propinas","Crianças",{"v":100,"d":"100 €"},{"v":100,"d":"100 €"},{"$f":"DadosDoOrçamento[[#This Row],[Custo Estimado]]-DadosDoOrçamento[[#This Row],[Custo Real]]","v":{"v":0,"d":"0 €"}},{"$f":"DadosDoOrçamento[[#This Row],[Custo Real]]","v":{"v":100,"d":"100 €"}}]
[null,"Concertos","Lazer",{"v":50,"d":"50 €"},{"v":40,"d":"40 €"},{"$f":"DadosDoOrçamento[[#This Row],[Custo Estimado]]-DadosDoOrçamento[[#This Row],[Custo Real]]","v":{"v":10,"d":"10 €"}},{"$f":"DadosDoOrçamento[[#This Row],[Custo Real]]","v":{"v":40,"d":"40 €"}}]
[null,"Teatro","Lazer",{"v":200,"d":"200 €"},{"v":150,"d":"150 €"},{"$f":"DadosDoOrçamento[[#This Row],[Custo Estimado]]-DadosDoOrçamento[[#This Row],[Custo Real]]","v":{"v":50,"d":"50 €"}},{"$f":"DadosDoOrçamento[[#This Row],[Custo Real]]","v":{"v":150,"d":"150 €"}}]
[null,"Filmes","Lazer",{"v":50,"d":"50 €"},{"v":28,"d":"28 €"},{"$f":"DadosDoOrçamento[[#This Row],[Custo Estimado]]-DadosDoOrçamento[[#This Row],[Custo Real]]","v":{"v":22,"d":"22 €"}},{"$f":"DadosDoOrçamento[[#This Row],[Custo Real]]","v":{"v":28,"d":"28 €"}}]
[null,"Música (CDs, transferências, etc.)","Lazer",{"v":50,"d":"50 €"},{"v":30,"d":"30 €"},{"$f":"DadosDoOrçamento[[#This Row],[Custo Estimado]]-DadosDoOrçamento[[#This Row],[Custo Real]]","v":{"v":20,"d":"20 €"}},{"$f":"DadosDoOrçamento[[#This Row],[Custo Real]]","v":{"v":30,"d":"30 €"}}]
[null,"Eventos Desportivos","Lazer",{"v":0,"d":"0 €"},{"v":40,"d":"40 €"},{"$f":"DadosDoOrçamento[[#This Row],[Custo Estimado]]-DadosDoOrçamento[[#This Row],[Custo Real]]","v":{"v":-40,"d":"-40 €"}},{"$f":"DadosDoOrçamento[[#This Row],[Custo Real]]","v":{"v":40,"d":"40 €"}}]
[null,"Vídeo/DVD (Compra)","Lazer",{"v":20,"d":"20 €"},{"v":50,"d":"50 €"},{"$f":"DadosDoOrçamento[[#This Row],[Custo Estimado]]-DadosDoOrçamento[[#This Row],[Custo Real]]","v":{"v":-30,"d":"-30 €"}},{"$f":"DadosDoOrçamento[[#This Row],[Custo Real]]","v":{"v":50,"d":"50 €"}}]
[null,"Vídeos/DVDs (Aluguer)","Lazer",{"v":30,"d":"30 €"},{"v":20,"d":"20 €"},{"$f":"DadosDoOrçamento[[#This Row],[Custo Estimado]]-DadosDoOrçamento[[#This Row],[Custo Real]]","v":{"v":10,"d":"10 €"}},{"$f":"DadosDoOrçamento[[#This Row],[Custo Real]]","v":{"v":20,"d":"20 €"}}]
[null,"Restauração","Alimentação",{"v":1000,"d":"1,000 €"},{"v":1200,"d":"1,200 €"},{"$f":"DadosDoOrçamento[[#This Row],[Custo Estimado]]-DadosDoOrçamento[[#This Row],[Custo Real]]","v":{"v":-200,"d":"-200 €"}},{"$f":"DadosDoOrçamento[[#This Row],[Custo Real]]","v":{"v":1200,"d":"1,200 €"}}]
[null,"Supermercado","Alimentação",{"v":100,"d":"100 €"},{"v":120,"d":"120 €"},{"$f":"DadosDoOrçamento[[#This Row],[Custo Estimado]]-DadosDoOrçamento[[#This Row],[Custo Real]]","v":{"v":-20,"d":"-20 €"}},{"$f":"DadosDoOrçamento[[#This Row],[Custo Real]]","v":{"v":120,"d":"120 €"}}]
[null,"Instituição de Caridade 1","Presentes e Doações a Instituições de Caridade",{"v":75,"d":"75 €"},{"v":100,"d":"100 €"},{"$f":"DadosDoOrçamento[[#This Row],[Custo Estimado]]-DadosDoOrçamento[[#This Row],[Custo Real]]","v":{"v":-25,"d":"-25 €"}},{"$f":"DadosDoOrçamento[[#This Row],[Custo Real]]","v":{"v":100,"d":"100 €"}}]
[null,"Instituição de Caridade 2","Presentes e Doações a Instituições de Caridade",{"v":25,"d":"25 €"},{"v":25,"d":"25 €"},{"$f":"DadosDoOrçamento[[#This Row],[Custo Estimado]]-DadosDoOrçamento[[#This Row],[Custo Real]]","v":{"v":0,"d":"0 €"}},{"$f":"DadosDoOrçamento[[#This Row],[Custo Real]]","v":{"v":25,"d":"25 €"}}]
[null,"Presente 1","Presentes e Doações a Instituições de Caridade",null,null,{"$f":"DadosDoOrçamento[[#This Row],[Custo Estimado]]-DadosDoOrçamento[[#This Row],[Custo Real]]","v":{"v":0,"d":"0 €"}},{"$f":"DadosDoOrçamento[[#This Row],[Custo Real]]","v":{"v":0,"d":"0 €"}}]
[null,"Presente 2","Presentes e Doações a Instituições de Caridade",null,null,{"$f":"DadosDoOrçamento[[#This Row],[Custo Estimado]]-DadosDoOrçamento[[#This Row],[Custo Real]]","v":{"v":0,"d":"0 €"}},{"$f":"DadosDoOrçamento[[#This Row],[Custo Real]]","v":{"v":0,"d":"0 €"}}]
[null,"TV por cabo/satélite","Habitação",{"v":100,"d":"100 €"},{"v":100,"d":"100 €"},{"$f":"DadosDoOrçamento[[#This Row],[Custo Estimado]]-DadosDoOrçamento[[#This Row],[Custo Real]]","v":{"v":0,"d":"0 €"}},{"$f":"DadosDoOrçamento[[#This Row],[Custo Real]]","v":{"v":100,"d":"100 €"}}]
[null,"Eletricidade","Habitação",{"v":45,"d":"45 €"},{"v":50,"d":"50 €"},{"$f":"DadosDoOrçamento[[#This Row],[Custo Estimado]]-DadosDoOrçamento[[#This Row],[Custo Real]]","v":{"v":-5,"d":"-5 €"}},{"$f":"DadosDoOrçamento[[#This Row],[Custo Real]]","v":{"v":50,"d":"50 €"}}]
[null,"Combustíveis","Habitação",{"v":300,"d":"300 €"},{"v":400,"d":"400 €"},{"$f":"DadosDoOrçamento[[#This Row],[Custo Estimado]]-DadosDoOrçamento[[#This Row],[Custo Real]]","v":{"v":-100,"d":"-100 €"}},{"$f":"DadosDoOrçamento[[#This Row],[Custo Real]]","v":{"v":400,"d":"400 €"}}]
[null,"Serviço de Limpeza Doméstica","Habitação",{"v":200,"d":"200 €"},null,{"$f":"DadosDoOrçamento[[#This Row],[Custo Estimado]]-DadosDoOrçamento[[#This Row],[Custo Real]]","v":{"v":200,"d":"200 €"}},{"$f":"DadosDoOrçamento[[#This Row],[Custo Real]]","v":{"v":0,"d":"0 €"}}]
[null,"Manutenção","Habitação",{"v":200,"d":"200 €"},{"v":150,"d":"150 €"},{"$f":"DadosDoOrçamento[[#This Row],[Custo Estimado]]-DadosDoOrçamento[[#This Row],[Custo Real]]","v":{"v":50,"d":"50 €"}},{"$f":"DadosDoOrçamento[[#This Row],[Custo Real]]","v":{"v":150,"d":"150 €"}}]
[null,"Empréstimo ou Renda Imobiliária","Habitação",{"v":1700,"d":"1,700 €"},{"v":1700,"d":"1,700 €"},{"$f":"DadosDoOrçamento[[#This Row],[Custo Estimado]]-DadosDoOrçamento[[#This Row],[Custo Real]]","v":{"v":0,"d":"0 €"}},{"$f":"DadosDoOrçamento[[#This Row],[Custo Real]]","v":{"v":1700,"d":"1,700 €"}}]
[null,"Gás natural/petróleo","Habitação",null,null,{"$f":"DadosDoOrçamento[[#This Row],[Custo Estimado]]-DadosDoOrçamento[[#This Row],[Custo Real]]","v":{"v":0,"d":"0 €"}},{"$f":"DadosDoOrçamento[[#This Row],[Custo Real]]","v":{"v":0,"d":"0 €"}}]
[null,"Serviço de Internet","Habitação",{"v":100,"d":"100 €"},{"v":100,"d":"100 €"},{"$f":"DadosDoOrçamento[[#This Row],[Custo Estimado]]-DadosDoOrçamento[[#This Row],[Custo Real]]","v":{"v":0,"d":"0 €"}},{"$f":"DadosDoOrçamento[[#This Row],[Custo Real]]","v":{"v":100,"d":"100 €"}}]
[null,"Telefone (Móvel)","Habitação",{"v":60,"d":"60 €"},{"v":60,"d":"60 €"},{"$f":"DadosDoOrçamento[[#This Row],[Custo Estimado]]-DadosDoOrçamento[[#This Row],[Custo Real]]","v":{"v":0,"d":"0 €"}},{"$f":"DadosDoOrçamento[[#This Row],[Custo Real]]","v":{"v":60,"d":"60 €"}}]
[null,"Telefone (Fixo)","Habitação",{"v":35,"d":"35 €"},{"v":39,"d":"39 €"},{"$f":"DadosDoOrçamento[[#This Row],[Custo Estimado]]-DadosDoOrçamento[[#This Row],[Custo Real]]","v":{"v":-4,"d":"-4 €"}},{"$f":"DadosDoOrçamento[[#This Row],[Custo Real]]","v":{"v":39,"d":"39 €"}}]
[null,"Materiais","Habitação",{"v":40,"d":"40 €"},{"v":55,"d":"55 €"},{"$f":"DadosDoOrçamento[[#This Row],[Custo Estimado]]-DadosDoOrçamento[[#This Row],[Custo Real]]","v":{"v":-15,"d":"-15 €"}},{"$f":"DadosDoOrçamento[[#This Row],[Custo Real]]","v":{"v":55,"d":"55 €"}}]
[null,"Recolha de Lixo e Reciclagem","Habitação",{"v":25,"d":"25 €"},{"v":22,"d":"22 €"},{"$f":"DadosDoOrçamento[[#This Row],[Custo Estimado]]-DadosDoOrçamento[[#This Row],[Custo Real]]","v":{"v":3,"d":"3 €"}},{"$f":"DadosDoOrçamento[[#This Row],[Custo Real]]","v":{"v":22,"d":"22 €"}}]
[null,"Água e Esgotos","Habitação",{"v":25,"d":"25 €"},{"v":26,"d":"26 €"},{"$f":"DadosDoOrçamento[[#This Row],[Custo Estimado]]-DadosDoOrçamento[[#This Row],[Custo Real]]","v":{"v":-1,"d":"-1 €"}},{"$f":"DadosDoOrçamento[[#This Row],[Custo Real]]","v":{"v":26,"d":"26 €"}}]
[null,"Saúde","Seguro",{"v":400,"d":"400 €"},{"v":400,"d":"400 €"},{"$f":"DadosDoOrçamento[[#This Row],[Custo Estimado]]-DadosDoOrçamento[[#This Row],[Custo Real]]","v":{"v":0,"d":"0 €"}},{"$f":"DadosDoOrçamento[[#This Row],[Custo Real]]","v":{"v":400,"d":"400 €"}}]
[null,"Casa","Seguro",{"v":400,"d":"400 €"},{"v":400,"d":"400 €"},{"$f":"DadosDoOrçamento[[#This Row],[Custo Estimado]]-DadosDoOrçamento[[#This Row],[Custo Real]]","v":{"v":0,"d":"0 €"}},{"$f":"DadosDoOrçamento[[#This Row],[Custo Real]]","v":{"v":400,"d":"400 €"}}]
[null,"Custos Diários","Seguro",{"v":100,"d":"100 €"},{"v":100,"d":"100 €"},{"$f":"DadosDoOrçamento[[#This Row],[Custo Estimado]]-DadosDoOrçamento[[#This Row],[Custo Real]]","v":{"v":0,"d":"0 €"}},{"$f":"DadosDoOrçamento[[#This Row],[Custo Real]]","v":{"v":100,"d":"100 €"}}]
[null,"Cartão de Crédito 1","Empréstimos",{"v":200,"d":"200 €"},{"v":200,"d":"200 €"},{"$f":"DadosDoOrçamento[[#This Row],[Custo Estimado]]-DadosDoOrçamento[[#This Row],[Custo Real]]","v":{"v":0,"d":"0 €"}},{"$f":"DadosDoOrçamento[[#This Row],[Custo Real]]","v":{"v":200,"d":"200 €"}}]
[null,"Cartão de Crédito 2","Empréstimos",null,null,{"$f":"DadosDoOrçamento[[#This Row],[Custo Estimado]]-DadosDoOrçamento[[#This Row],[Custo Real]]","v":{"v":0,"d":"0 €"}},{"$f":"DadosDoOrçamento[[#This Row],[Custo Real]]","v":{"v":0,"d":"0 €"}}]
[null,"Cartão de Crédito 3","Empréstimos",null,null,{"$f":"DadosDoOrçamento[[#This Row],[Custo Estimado]]-DadosDoOrçamento[[#This Row],[Custo Real]]","v":{"v":0,"d":"0 €"}},{"$f":"DadosDoOrçamento[[#This Row],[Custo Real]]","v":{"v":0,"d":"0 €"}}]
[null,"Custos Pessoais","Empréstimos",null,null,{"$f":"DadosDoOrçamento[[#This Row],[Custo Estimado]]-DadosDoOrçamento[[#This Row],[Custo Real]]","v":{"v":0,"d":"0 €"}},{"$f":"DadosDoOrçamento[[#This Row],[Custo Real]]","v":{"v":0,"d":"0 €"}}]
[null,"Despesas Escolares","Empréstimos",null,null,{"$f":"DadosDoOrçamento[[#This Row],[Custo Estimado]]-DadosDoOrçamento[[#This Row],[Custo Real]]","v":{"v":0,"d":"0 €"}},{"$f":"DadosDoOrçamento[[#This Row],[Custo Real]]","v":{"v":0,"d":"0 €"}}]
[null,"Vestuário","Cuidados Pessoais",{"v":150,"d":"150 €"},{"v":140,"d":"140 €"},{"$f":"DadosDoOrçamento[[#This Row],[Custo Estimado]]-DadosDoOrçamento[[#This Row],[Custo Real]]","v":{"v":10,"d":"10 €"}},{"$f":"DadosDoOrçamento[[#This Row],[Custo Real]]","v":{"v":140,"d":"140 €"}}]
[null,"Limpeza a Seco","Cuidados Pessoais",null,null,{"$f":"DadosDoOrçamento[[#This Row],[Custo Estimado]]-DadosDoOrçamento[[#This Row],[Custo Real]]","v":{"v":0,"d":"0 €"}},{"$f":"DadosDoOrçamento[[#This Row],[Custo Real]]","v":{"v":0,"d":"0 €"}}]
[null,"Cabeleireiro/Manicure","Cuidados Pessoais",null,null,{"$f":"DadosDoOrçamento[[#This Row],[Custo Estimado]]-DadosDoOrçamento[[#This Row],[Custo Real]]","v":{"v":0,"d":"0 €"}},{"$f":"DadosDoOrçamento[[#This Row],[Custo Real]]","v":{"v":0,"d":"0 €"}}]
[null,"Ginásio","Cuidados Pessoais",null,null,{"$f":"DadosDoOrçamento[[#This Row],[Custo Estimado]]-DadosDoOrçamento[[#This Row],[Custo Real]]","v":{"v":0,"d":"0 €"}},{"$f":"DadosDoOrçamento[[#This Row],[Custo Real]]","v":{"v":0,"d":"0 €"}}]
[null,"Médicos","Cuidados Pessoais",null,null,{"$f":"DadosDoOrçamento[[#This Row],[Custo Estimado]]-DadosDoOrçamento[[#This Row],[Custo Real]]","v":{"v":0,"d":"0 €"}},{"$f":"DadosDoOrçamento[[#This Row],[Custo Real]]","v":{"v":0,"d":"0 €"}}]
[null,"Alimentação","Animais de Estimação",{"v":150,"d":"150 €"},{"v":75,"d":"75 €"},{"$f":"DadosDoOrçamento[[#This Row],[Custo Estimado]]-DadosDoOrçamento[[#This Row],[Custo Real]]","v":{"v":75,"d":"75 €"}},{"$f":"DadosDoOrçamento[[#This Row],[Custo Real]]","v":{"v":75,"d":"75 €"}}]
[null,"Beleza","Animais de Estimação",{"v":20,"d":"20 €"},{"v":25,"d":"25 €"},{"$f":"DadosDoOrçamento[[#This Row],[Custo Estimado]]-DadosDoOrçamento[[#This Row],[Custo Real]]","v":{"v":-5,"d":"-5 €"}},{"$f":"DadosDoOrçamento[[#This Row],[Custo Real]]","v":{"v":25,"d":"25 €"}}]
[null,"Médicos","Animais de Estimação",null,null,{"$f":"DadosDoOrçamento[[#This Row],[Custo Estimado]]-DadosDoOrçamento[[#This Row],[Custo Real]]","v":{"v":0,"d":"0 €"}},{"$f":"DadosDoOrçamento[[#This Row],[Custo Real]]","v":{"v":0,"d":"0 €"}}]
[null,"Brinquedos","Animais de Estimação",null,null,{"$f":"DadosDoOrçamento[[#This Row],[Custo Estimado]]-DadosDoOrçamento[[#This Row],[Custo Real]]","v":{"v":0,"d":"0 €"}},{"$f":"DadosDoOrçamento[[#This Row],[Custo Real]]","v":{"v":0,"d":"0 €"}}]
[null,"Conta de investimento","Poupanças ou Investimentos",{"v":200,"d":"200 €"},{"v":200,"d":"200 €"},{"$f":"DadosDoOrçamento[[#This Row],[Custo Estimado]]-DadosDoOrçamento[[#This Row],[Custo Real]]","v":{"v":0,"d":"0 €"}},{"$f":"DadosDoOrçamento[[#This Row],[Custo Real]]","v":{"v":200,"d":"200 €"}}]
[null,"Conta poupança para reforma","Poupanças ou Investimentos",null,null,{"$f":"DadosDoOrçamento[[#This Row],[Custo Estimado]]-DadosDoOrçamento[[#This Row],[Custo Real]]","v":{"v":0,"d":"0 €"}},{"$f":"DadosDoOrçamento[[#This Row],[Custo Real]]","v":{"v":0,"d":"0 €"}}]
[null,"Federais","Impostos",{"v":300,"d":"300 €"},{"v":300,"d":"300 €"},{"$f":"DadosDoOrçamento[[#This Row],[Custo Estimado]]-DadosDoOrçamento[[#This Row],[Custo Real]]","v":{"v":0,"d":"0 €"}},{"$f":"DadosDoOrçamento[[#This Row],[Custo Real]]","v":{"v":300,"d":"300 €"}}]
[null,"Locais","Impostos",null,null,{"$f":"DadosDoOrçamento[[#This Row],[Custo Estimado]]-DadosDoOrçamento[[#This Row],[Custo Real]]","v":{"v":0,"d":"0 €"}},{"$f":"DadosDoOrçamento[[#This Row],[Custo Real]]","v":{"v":0,"d":"0 €"}}]
[null,"Distritais","Impostos",null,null,{"$f":"DadosDoOrçamento[[#This Row],[Custo Estimado]]-DadosDoOrçamento[[#This Row],[Custo Real]]","v":{"v":0,"d":"0 €"}},{"$f":"DadosDoOrçamento[[#This Row],[Custo Real]]","v":{"v":0,"d":"0 €"}}]
[null,"Despesas de Autocarro/Táxi","Transportes",{"v":100,"d":"100 €"},{"v":150,"d":"150 €"},{"$f":"DadosDoOrçamento[[#This Row],[Custo Estimado]]-DadosDoOrçamento[[#This Row],[Custo Real]]","v":{"v":-50,"d":"-50 €"}},{"$f":"DadosDoOrçamento[[#This Row],[Custo Real]]","v":{"v":150,"d":"150 €"}}]
[null,"Combustível","Transportes",{"v":450,"d":"450 €"},{"v":400,"d":"400 €"},{"$f":"DadosDoOrçamento[[#This Row],[Custo Estimado]]-DadosDoOrçamento[[#This Row],[Custo Real]]","v":{"v":50,"d":"50 €"}},{"$f":"DadosDoOrçamento[[#This Row],[Custo Real]]","v":{"v":400,"d":"400 €"}}]
[null,"Seguro","Transportes",{"v":300,"d":"300 €"},{"v":300,"d":"300 €"},{"$f":"DadosDoOrçamento[[#This Row],[Custo Estimado]]-DadosDoOrçamento[[#This Row],[Custo Real]]","v":{"v":0,"d":"0 €"}},{"$f":"DadosDoOrçamento[[#This Row],[Custo Real]]","v":{"v":300,"d":"300 €"}}]
[null,"Licenças ","Transportes",{"v":25,"d":"25 €"},{"v":25,"d":"25 €"},{"$f":"DadosDoOrçamento[[#This Row],[Custo Estimado]]-DadosDoOrçamento[[#This Row],[Custo Real]]","v":{"v":0,"d":"0 €"}},{"$f":"DadosDoOrçamento[[#This Row],[Custo Real]]","v":{"v":25,"d":"25 €"}}]
[null,"Manutenção","Transportes",{"v":100,"d":"100 €"},{"v":50,"d":"50 €"},{"$f":"DadosDoOrçamento[[#This Row],[Custo Estimado]]-DadosDoOrçamento[[#This Row],[Custo Real]]","v":{"v":50,"d":"50 €"}},{"$f":"DadosDoOrçamento[[#This Row],[Custo Real]]","v":{"v":50,"d":"50 €"}}]
[null,"Tarifas de Estacionamento","Transportes",null,null,{"$f":"DadosDoOrçamento[[#This Row],[Custo Estimado]]-DadosDoOrçamento[[#This Row],[Custo Real]]","v":{"v":0,"d":"0 €"}},{"$f":"DadosDoOrçamento[[#This Row],[Custo Real]]","v":{"v":0,"d":"0 €"}}]
[null,"Pagamento de veículo","Transportes",{"v":450,"d":"450 €"},{"v":450,"d":"450 €"},{"$f":"DadosDoOrçamento[[#This Row],[Custo Estimado]]-DadosDoOrçamento[[#This Row],[Custo Real]]","v":{"v":0,"d":"0 €"}},{"$f":"DadosDoOrçamento[[#This Row],[Custo Real]]","v":{"v":450,"d":"450 €"}}]
[null,"Total",null,{"$f":"SUBTOTAL(109,DadosDoOrçamento[Custo Estimado])","v":{"v":7915,"d":"7,915 €"}},{"$f":"SUBTOTAL(109,DadosDoOrçamento[Custo Real])","v":{"v":7860,"d":"7,860 €"}},{"$f":"SUBTOTAL(109,DadosDoOrçamento[Diferença])","v":{"v":55,"d":"55 €"}}]

{"sheet":"Dados Adicionais","index":2,"n_rows":15,"n_cols":5,"rows_kept":15}
[null,"Tabela Dinâmica para o gráfico de Descrição Geral do Orçamento",null,null,"Lista de Pesquisa para a Categoria de Detalhes de Orçamento"]
[null,"Categoria","Custo ",null,"Pesquisa de Categoria de Orçamento"]
[null,"Crianças",140,null,"Alimentação"]
[null,"Lazer",358,null,"Animais de Estimação"]
[null,"Alimentação",1320,null,"Crianças"]
[null,"Presentes e Doações a Instituições de Caridade",125,null,"Cuidados Pessoais"]
[null,"Habitação",2702,null,"Empréstimos"]
[null,"Seguro",900,null,"Habitação"]
[null,"Empréstimos",200,null,"Impostos"]
[null,"Cuidados Pessoais",140,null,"Lazer"]
[null,"Animais de Estimação",100,null,"Poupanças ou Investimentos"]
[null,"Poupanças ou Investimentos",200,null,"Presentes e Doações a Instituições de Caridade"]
[null,"Impostos",300,null,"Seguro"]
[null,"Transportes",1375,null,"Transportes"]
[null,"Total Geral",7860]